fUSD/lending_fUSD_20260217
["ID","MTS","AMOUNT","RATE_DAILY","PERIOD"]
[405852701,1771361454757,-964.36669259,0.00017831,3]
[405852702,1771361454767,-250.0,0.00017831,3]
[405852703,1771361454776,-200.0,0.00017831,3]
[405852704,1771361454786,-1000.04826021,0.00017831,3]
[405852705,1771361454796,-250.0,0.00017831,3]
[405852706,1771361454805,-200.0,0.00017831,3]
[405852707,1771361454820,-1037.05004584,0.00017831,3]
[405852708,1771361454829,-200.0,0.00017831,3]
[405852709,1771361454839,-693.3919763,0.00017831,3]
[405852710,1771361454849,-200.0,0.00017831,3]
[405852711,1771361454859,-719.04747942,0.00017831,3]
[405852712,1771361454869,-200.0,0.00017831,3]
[405852713,1771361454879,-745.65223616,0.00017831,3]
[405852714,1771361454888,-200.0,0.00017831,3]
[405852715,1771361454901,-773.2413689,0.00017831,3]
[405852716,1771361454910,-200.0,0.00017831,3]
[405852717,1771361454920,-801.85129955,0.00017831,3]
[405852718,1771361454930,-200.0,0.00017831,3]
[405852719,1771361454939,-831.51979763,0.00017831,3]
[405852720,1771361454948,-200.0,0.00017831,3]
[405852721,1771361454957,-862.28603014,0.00017831,3]
[405852722,1771361454968,-200.0,0.00017831,3]
[405852723,1771361454979,-894.19061326,0.00017831,3]
[405852724,1771361454988,-164.43370107,0.00017831,3]
[405852725,1771361454999,-927.27566595,0.00017831,3]
[405852726,1771361455008,-961.58486559,0.00017831,3]
[405852727,1771361455018,-997.16350561,0.00017831,3]
[405852728,1771361455027,-250.0,0.00017831,3]
[405852729,1771361455037,-3000.0,0.00017831,3]
[405852730,1771361455046,-250.0,0.00017831,3]
[405852731,1771361455056,-3000.0,0.00017831,3]
[405852732,1771361455065,-250.0,0.00017831,3]
[405852733,1771361455075,-3000.0,0.00017831,3]
[405852734,1771361455084,-250.0,0.00017831,3]
[405852735,1771361455094,-3000.0,0.00017831,3]
[405852736,1771361455104,-250.0,0.00017831,3]
[405852737,1771361455114,-3000.0,0.00017831,3]
[405852738,1771361455123,-250.0,0.00017831,3]
[405852739,1771361455134,-3000.0,0.00017831,3]
[405852740,1771361455143,-250.0,0.00017831,3]
[405852741,1771361455154,-151.0,0.00017831,3]
[405852742,1771361455163,-3000.0,0.00017831,3]
[405852743,1771361455172,-250.0,0.00017831,3]
[405852744,1771361455183,-151.0,0.00017831,3]
[405852745,1771361455194,-2570.81608438,0.00017831,3]
[405852746,1771361455203,-250.0,0.00017831,3]
[405852747,1771361455212,-151.0,0.00017831,3]
[405852748,1771361455222,-250.0,0.00017831,3]
[405852749,1771361455232,-151.0,0.00017831,3]
[405852750,1771361455241,-151.0,0.00017831,3]
[405852751,1771361455250,-250.0,0.00017831,3]
[405852752,1771361455260,-151.0,0.00017831,3]
[405852753,1771361455269,-151.0,0.00017831,3]
[405852754,1771361455279,-151.0,0.00017831,3]
[405852755,1771361455288,-151.0,0.00017831,3]
[405852756,1771361455298,-151.0,0.00017831,3]
[405852757,1771361455307,-151.0,0.00017831,3]
[405852758,1771361455318,-151.61045429,0.00017845,2]
[405852759,1771361455327,-200.0,0.00017855,2]
[405852760,1771361455337,-500.0,0.00017856,2]
[405852761,1771361455348,-200.0,0.00017856,2]
[405852762,1771361455357,-200.0,0.00017856,2]
[405852763,1771361455366,-1471.37769193,0.00017863,2]
[405852764,1771361455376,-808.0,0.00017882,2]
[405852765,1771361455386,-150.0,0.00017882,2]
[405852766,1771361455395,-919.0,0.00017896,2]
[405852767,1771361455406,-286.57595535,0.00017896,2]
[405852768,1771361455416,-951.6545,0.000179,2]
[405852769,1771361455426,-4587.476,0.000179,2]
[405852770,1771361455435,-11692.0,0.000179,6]
[405852771,1771361455444,-5019.02576734,0.000179,2]
[405852772,1771361455454,-37474.45314742,0.000179,2]
[405852773,1771361455464,-273.42872891,0.000179,2]
[405852774,1771361455475,-3957.28702206,0.000179,2]
[405852775,1771361455485,-17720.8538312,0.000179,2]
[405852776,1771361455494,-311.844149,0.000179,2]
[405852777,1771361455503,-311.844149,0.000179,2]
[405852778,1771361455514,-311.844149,0.000179,2]
[405852779,1771361455524,-311.844149,0.000179,2]
[405852780,1771361455533,-1000.0,0.00017902,2]
[405852781,1771361455543,-166.11141928,0.00017906,2]
[405852782,1771361455552,-661.84954888,0.00017945,2]
[405852783,1771361455563,-200.0,0.00017945,2]
[405852784,1771361455572,-200.0,0.00017945,2]
[405852785,1771361455582,-200.0,0.00017945,2]
[405852786,1771361455592,-1000.0,0.00017945,2]
[405852787,1771361455601,-389.83552787,0.00017945,2]
[405852788,1771361455612,-200.0,0.00017945,2]
[405852789,1771361455622,-1508.0,0.00017945,2]
[405852790,1771361455632,-152.0,0.00017945,2]
[405852791,1771361455642,-153.0,0.00017945,2]
[405852792,1771361455652,-152.0,0.00017945,2]
[405852793,1771361455662,-152.0,0.00017945,2]
[405852794,1771361455675,-152.0,0.00017945,2]
[405852795,1771361455686,-1000.0,0.00017948,2]
[405852796,1771361455696,-150.0,0.00017952,2]
[405852797,1771361455706,-919.0,0.00017956,2]
[405852798,1771361455718,-1000.0,0.00017962,2]
[405852799,1771361455729,-1000.0,0.00017966,2]
[405852800,1771361455739,-158.65284712,0.00017986,2]
[405852801,1771361455751,-152.0,0.00017986,2]
[405852802,1771361455761,-152.0,0.00017986,2]
[405852803,1771361455771,-152.0,0.00017986,2]
[405852804,1771361455780,-152.0,0.00017986,2]
[405852805,1771361455790,-152.0,0.00017986,2]
[405852806,1771361455800,-152.0,0.00017986,2]
[405852807,1771361455809,-153.0,0.00017986,2]
[405852808,1771361455819,-152.0,0.00017986,2]
[405852809,1771361455828,-152.0,0.00017986,2]
[405852810,1771361455839,-153.0,0.00017986,2]
[405852811,1771361455848,-152.0,0.00017986,2]
[405852812,1771361455858,-152.0,0.00017986,2]
[405852813,1771361455868,-153.0,0.00017986,2]
[405852814,1771361455878,-152.0,0.00017986,2]
[405852815,1771361455889,-153.0,0.00017986,2]
[405852816,1771361455899,-153.0,0.00017986,2]
[405852817,1771361455909,-152.0,0.00017986,2]
[405852818,1771361455919,-153.0,0.00017986,2]
[405852819,1771361455928,-153.0,0.00017986,2]
[405852820,1771361455938,-153.0,0.00017986,2]
[405852821,1771361455948,-153.0,0.00017986,2]
[405852822,1771361455958,-153.0,0.00017986,2]
[405852823,1771361455968,-153.0,0.00017986,2]
[405852824,1771361455978,-153.0,0.00017986,2]
[405852825,1771361455987,-153.0,0.00017986,2]
[405852826,1771361455997,-153.0,0.00017986,2]
[405852827,1771361456007,-153.0,0.00017986,2]
[405852828,1771361456016,-153.0,0.00017986,2]
[405852829,1771361456027,-153.0,0.00017986,2]
[405852830,1771361456036,-153.0,0.00017986,2]
[405852831,1771361456046,-152.0,0.00017986,2]
[405852832,1771361456055,-152.0,0.00017986,2]
[405852833,1771361456066,-152.0,0.00017986,2]
[405852834,1771361456076,-1000.0,0.00017987,2]
[405852835,1771361456086,-596.47581986,0.00017999,2]
[405852836,1771361456096,-2052.7,0.00017999,2]
[405852837,1771361456106,-2052.7,0.00017999,2]
[405852838,1771361456115,-2052.7,0.00017999,2]
[405852839,1771361456125,-2052.7,0.00017999,2]
[405852840,1771361456134,-2052.7,0.00017999,2]
[405852841,1771361456144,-2052.7,0.00017999,2]
[405852842,1771361456155,-2052.7,0.00017999,2]
[405852843,1771361456165,-2052.7,0.00017999,2]
[405852844,1771361456175,-2052.7,0.00017999,2]
[405852845,1771361456185,-2052.7,0.00017999,2]
[405852846,1771361456195,-2052.77678348,0.00017999,2]
[405852847,1771361456205,-309.76116333,0.00017999,2]
[405852848,1771361456215,-152.74609945,0.00017999,2]
[405852849,1771361456224,-557.01252391,0.00017999,2]
[405852850,1771361456234,-274.66803602,0.00017999,2]
[405852851,1771361456244,-300.0,0.00017999,2]
[405852852,1771361456254,-300.0,0.00017999,2]
[405852853,1771361456264,-666.0,0.00017999,2]
[405852854,1771361456274,-300.0,0.00017999,2]
[405852855,1771361456284,-300.0,0.00017999,2]
[405852856,1771361456294,-666.0,0.00017999,2]
[405852857,1771361456304,-243.22753519,0.00017999,2]
[405852858,1771361456314,-150.0,0.00018,2]
[405852859,1771361456324,-239283.66200269,0.00018,2]
[405852860,1771361457398,-418.979,0.00016898,2]
[405852861,1771361457414,-7365236.95815465,0.00018,2]
[405852862,1771361457612,-173.57638878,0.00012486,2]
[405852863,1771361457623,-7719.01378521,0.00018,2]
[405852864,1771361457635,-504.0,0.00018,2]
[405852865,1771361602045,8500.01,6.599e-05,2]
[405852866,1771361602066,1499.99,6.599e-05,2]
[405852887,1771362632121,-301.8565795,8e-05,2]
[405852888,1771362632132,-217.0,8e-05,2]
[405852889,1771362632142,-250.0,8.8e-05,2]
[405852890,1771362632152,-250.0,9e-05,2]
[405852891,1771362632162,-181.1139477,0.0001,2]
[405852892,1771362632171,-250.0,0.00010211,2]
[405852893,1771362632181,-250.0,0.00010571,2]
[405852894,1771362632190,-298.285231,0.00010671,2]
[405852895,1771362632200,-243.91212124,0.00010849,2]
[405852896,1771362632212,-278.84787876,0.00010849,2]
[405852897,1771362632222,-66.26784401,0.00010959,2]
[405852898,1771362632235,-83.73215599,0.00010959,2]
[405852899,1771362632244,-545.57252874,0.00011123,2]
[405852900,1771362632254,-228.0,0.0001113,2]
[405852901,1771362632264,-300.0,0.0001113,2]
[405852902,1771362632273,-1197.65839921,0.0001113,2]
[405852903,1771362632293,-2.34160079,0.0001113,2]
[405852904,1771362632304,-1591.11100679,0.00011131,2]
[405852905,1771362632314,-808.90384262,0.00011131,2]
[405852906,1771362632324,-455.6435498,0.00011131,2]
[405852907,1771362632336,-265.0,0.00011131,2]
[405852934,1771362638207,-1917.54779824,0.00011131,2]
[405852935,1771362638217,-1254.26998076,0.00011131,2]
[405852936,1771362638227,-1198.86342706,0.00011132,2]
[405852937,1771362638236,-249194.81088973,0.00011133,2]
[405852938,1771362638263,-825.02024,0.00011133,2]
[405852939,1771362638321,-3249980.16887027,0.00011133,2]
[405852940,1771362638331,-13523.61,0.00011233,2]
[405852941,1771362638340,-1198.86342704,0.00011382,2]
[405852942,1771362638350,-5530.0,0.000114,3]
[405852943,1771362638359,-2900.0,0.000115,4]
[405852944,1771362638369,-242.0,0.00011593,2]
[405852945,1771362638378,-5800.0,0.000116,4]
[405852946,1771362638388,-151.0,0.00011616,2]
[405852947,1771362638397,-1198.86342704,0.00011632,2]
[405852948,1771362638407,-274.0,0.00011639,2]
[405852949,1771362638417,-322.46,0.00011651,2]
[405852950,1771362638426,-159.0,0.00011663,2]
[405852951,1771362638435,-320.0,0.00011686,2]
[405852952,1771362638445,-3870.03788565,0.000117,4]
[405852953,1771362638469,-692.12501114,0.000117,4]
[405852973,1771362640488,-4137.83710321,0.000117,4]
[405852974,1771362640499,-5530.0,0.000117,5]
[405852975,1771362640509,-770.0,0.00011708,2]
[405852976,1771362640518,-156.0,0.00011709,2]
[405852977,1771362640528,-150.0,0.00011727,2]
[405852978,1771362640538,-500.0,0.00011728,2]
[405852979,1771362640548,-546.0,0.00011728,2]
[405852980,1771362640559,-13457.98,0.00011728,2]
[405852981,1771362640568,-361.0,0.00011732,2]
[405852982,1771362640578,-168.0,0.00011732,2]
[405852983,1771362640589,-1245.0,0.00011755,2]
[405852984,1771362640599,-363.0,0.00011755,2]
[405852985,1771362640608,-1619.0,0.00011778,2]
[405852986,1771362640618,-389.0,0.00011778,2]
[405852987,1771362640629,-500.0,0.00011783,2]
[405852988,1771362640639,-546.0,0.00011783,2]
[405852989,1771362640649,-545.57252874,0.00011792,2]
[405852990,1771362640659,-11600.0,0.000118,4]
[405852991,1771362640673,-377.0,0.00011801,2]
[405852992,1771362640687,-466.0,0.00011802,2]
[405852993,1771362640705,-6737.6189,0.00011802,2]
[405852994,1771362640715,-4129.358,0.00011802,2]
[405852995,1771362640725,-89451.1427,0.00011802,2]
[405852996,1771362640736,-2500.0,0.00011802,2]
[405852997,1771362640746,-41302.4862088,0.00011808,2]
[405852998,1771362640756,-790.0,0.00011825,2]
[405852999,1771362640766,-230.0,0.00011825,2]
[405853000,1771362640777,-500.0,0.00011838,2]
[405853001,1771362640787,-546.0,0.00011838,2]
[405853002,1771362640797,-1377.0,0.00011849,2]
[405853003,1771362640808,-500.0,0.00011849,2]
[405853004,1771362640818,-1811.0,0.00011872,2]
[405853005,1771362640828,-500.0,0.00011892,2]
[405853006,1771362640838,-546.0,0.00011892,2]
[405853007,1771362640848,-403.0,0.00011895,2]
[405853008,1771362640859,-14500.0,0.000119,4]
[405853009,1771362640869,-662068.1675,0.00011902,2]
[405853011,1771362640879,-357.0,0.00011919,2]
[405853013,1771362640891,-1359.0,0.00011942,2]
[405853015,1771362640901,-500.0,0.00011947,2]
[405853017,1771362640911,-546.0,0.00011947,2]
[405853018,1771362640921,-175.08,0.00012,2]
[405853019,1771362640931,-9999.99,0.00012,2]
[405853020,1771362640941,-150.99,0.00012,2]
[405853021,1771362640951,-999.99,0.00012,2]
[405853023,1771362641346,-9999.99,0.00012,2]
[405853024,1771362641357,-499.99,0.00012,2]
[405853025,1771362641367,-150.99,0.00012,2]
[405853026,1771362641377,-994.9,0.00012,2]
[405853027,1771362641388,-182.28581928,0.00012,2]
[405853028,1771362641398,-11813.90255414,0.00012,2]
[405853029,1771362641408,-2823.55,0.00012001,2]
[405853030,1771362641418,-9999.99,0.00012001,2]
[405853031,1771362641428,-9999.99,0.00012001,2]
[405853032,1771362641438,-299.99,0.00012001,2]
[405853033,1771362641448,-13062.74,0.00012001,2]
[405853034,1771362641458,-280.68179644,0.00012002,2]
[405853035,1771362641469,-546.0,0.00012002,2]
[405853036,1771362641479,-53370.16,0.00012003,2]
[405853037,1771362641488,-546.0,0.00012057,2]
[405853038,1771362641498,-500.0,0.00012065,2]
[405853039,1771362641508,-500.0,0.00012065,2]
[405853040,1771362641521,-500.0,0.00012065,2]
[405853041,1771362641531,-500.0,0.00012065,2]
[405853042,1771362641541,-500.0,0.00012065,2]
[405853043,1771362641550,-500.0,0.00012065,2]
[405853044,1771362641560,-500.0,0.00012065,2]
[405853045,1771362641570,-500.0,0.00012065,2]
[405853046,1771362641581,-500.0,0.00012065,2]
[405853047,1771362641590,-500.0,0.00012065,2]
[405853048,1771362641600,-500.0,0.00012065,2]
[405853049,1771362641610,-200.0,0.00012065,2]
[405853050,1771362641621,-500.0,0.00012065,2]
[405853051,1771362641632,-151.0,0.00012065,2]
[405853052,1771362641643,-500.0,0.00012065,2]
[405853053,1771362641653,-151.0,0.00012065,2]
[405853054,1771362641663,-500.0,0.00012065,2]
[405853055,1771362641673,-500.0,0.00012065,2]
[405853056,1771362641683,-151.0,0.00012065,2]
[405853057,1771362641693,-500.0,0.00012065,2]
[405853058,1771362641703,-151.0,0.00012065,2]
[405853059,1771362641716,-500.0,0.00012065,2]
[405853060,1771362641726,-151.0,0.00012065,2]
[405853061,1771362641737,-500.0,0.00012065,2]
[405853062,1771362641747,-151.0,0.00012065,2]
[405853063,1771362641758,-500.0,0.00012065,2]
[405853064,1771362641768,-151.0,0.00012065,2]
[405853065,1771362641779,-500.0,0.00012065,2]
[405853066,1771362641790,-151.0,0.00012065,2]
[405853067,1771362641800,-500.0,0.00012065,2]
[405853068,1771362641810,-151.0,0.00012065,2]
[405853069,1771362641819,-500.0,0.00012065,2]
[405853070,1771362641829,-151.0,0.00012065,2]
[405853071,1771362641842,-500.0,0.00012065,2]
[405853072,1771362641856,-151.0,0.00012065,2]
[405853073,1771362641865,-200.0,0.00012065,2]
[405853074,1771362641875,-164.43370107,0.00012065,2]
[405853075,1771362641892,-151.0,0.00012065,2]
[405853076,1771362641905,-151.0,0.00012065,2]
[405853077,1771362641915,-151.0,0.00012065,2]
[405853078,1771362641925,-151.0,0.00012065,2]
[405853079,1771362641934,-151.0,0.00012065,2]
[405853080,1771362641944,-151.0,0.00012065,2]
[405853081,1771362641954,-151.0,0.00012065,2]
[405853082,1771362641969,-151.0,0.00012065,2]
[405853083,1771362641979,-151.0,0.00012065,2]
[405853084,1771362641992,-151.0,0.00012065,2]
[405853085,1771362642001,-151.0,0.00012065,2]
[405853086,1771362642011,-151.0,0.00012065,2]
[405853087,1771362642021,-151.0,0.00012065,2]
[405853088,1771362642032,-151.0,0.00012065,2]
[405853089,1771362642042,-151.0,0.00012065,2]
[405853090,1771362642052,-151.0,0.00012065,2]
[405853091,1771362642063,-151.0,0.00012065,2]
[405853092,1771362642073,-151.0,0.00012065,2]
[405853093,1771362642083,-151.0,0.00012065,2]
[405853094,1771362642093,-151.0,0.00012065,2]
[405853095,1771362642103,-248.36,0.000121,2]
[405853096,1771362642113,-500.0,0.00012101,2]
[405853097,1771362642123,-546.0,0.00012112,2]
[405853098,1771362642147,-500.0,0.00012123,2]
[405853099,1771362642160,-546.0,0.00012166,2]
[405853100,1771362642171,-500.0,0.00012173,2]
[405853101,1771362642181,-500.0,0.00012173,2]
[405853102,1771362642191,-616.56100589,0.00012173,2]
[405853103,1771362642202,-623.71743587,0.00012173,2]
[405853104,1771362642212,-160.1837527,0.00012173,2]
[405853105,1771362642223,-500.0,0.00012173,2]
[405853106,1771362642233,-500.0,0.00012173,2]
[405853107,1771362642244,-500.0,0.00012173,2]
[405853108,1771362642254,-500.0,0.00012173,2]
[405853109,1771362642265,-218.33608313,0.00012173,2]
[405853110,1771362642275,-500.0,0.00012173,2]
[405853111,1771362642286,-500.0,0.00012173,2]
[405853112,1771362642296,-500.0,0.00012173,2]
[405853113,1771362642306,-500.0,0.00012173,2]
[405853114,1771362642317,-500.0,0.00012173,2]
[405853115,1771362642327,-500.0,0.00012173,2]
[405853116,1771362642337,-500.0,0.00012173,2]
[405853117,1771362642347,-500.0,0.00012173,2]
[405853118,1771362642358,-500.62727143,0.00012173,2]
[405853119,1771362642368,-500.0,0.00012173,2]
[405853120,1771362642379,-500.0,0.00012173,2]
[405853121,1771362642390,-166.78412047,0.00012173,2]
[405853122,1771362642400,-500.0,0.00012173,2]
[405853123,1771362642410,-163.58520611,0.00012173,2]
[405853124,1771362642420,-500.0,0.00012173,2]
[405853125,1771362642431,-500.0,0.00012173,2]
[405853126,1771362642442,-500.0,0.00012173,2]
[405853127,1771362642454,-546.0,0.00012221,2]
[405853128,1771362642465,-1680.0,0.00012243,2]
[405853129,1771362642475,-41302.48620872,0.00012247,2]
[405853130,1771362642491,-546.0,0.00012276,2]
[405853131,1771362642502,-546.0,0.00012331,2]
[405853132,1771362642513,-546.0,0.00012386,2]
[405853133,1771362642524,-500.0,0.00012397,2]
[405853134,1771362642536,-546.0,0.0001244,2]
[405853135,1771362642547,-546.0,0.00012495,2]
[405853136,1771362642557,-2185.89,0.00012513,2]
[405853137,1771362642567,-546.0,0.0001255,2]
[405853138,1771362642578,-546.0,0.00012605,2]
[405853139,1771362642589,-200.0,0.00012613,2]
[405853140,1771362642599,-500.0,0.00012613,2]
[405853141,1771362642609,-200.0,0.00012613,2]
[405853142,1771362642620,-173.57638878,0.00012623,2]
[405853143,1771362642631,-546.0,0.0001266,2]
[405853144,1771362642642,-500.0,0.00012671,2]
[405853145,1771362642652,-41302.48620872,0.00012686,2]
[405853146,1771362642663,-160.13,0.000127,2]
[405853147,1771362642673,-546.0,0.00012714,2]
[405853148,1771362642684,-1000.0,0.00012721,2]
[405853149,1771362642695,-306.86059886,0.00012721,2]
[405853150,1771362642705,-1013.94571317,0.00012721,2]
[405853151,1771362642716,-1000.0,0.00012721,2]
[405853152,1771362642726,-1000.0,0.00012721,2]
[405853153,1771362642736,-928.11420057,0.00012721,2]
[405853154,1771362642747,-501.82748142,0.00012721,2]
[405853155,1771362642757,-1000.0,0.00012721,2]
[405853156,1771362642767,-615.3930462,0.00012721,2]
[405853157,1771362642777,-306.10762696,0.00012721,2]
[405853158,1771362642788,-1000.0,0.00012721,2]
[405853159,1771362642799,-1000.0,0.00012721,2]
[405853160,1771362642809,-1000.0,0.00012721,2]
[405853161,1771362642820,-1000.0,0.00012721,2]
[405853162,1771362642831,-1000.0,0.00012721,2]
[405853163,1771362642847,-1000.0,0.00012721,2]
[405853164,1771362642858,-1071.24633497,0.00012721,2]
[405853165,1771362642871,-1000.0,0.00012721,2]
[405853166,1771362642881,-546.0,0.00012769,2]
[405853167,1771362642894,-255.0,0.00012794,2]
[405853168,1771362642905,-546.0,0.00012824,2]
[405853169,1771362642915,-546.0,0.00012879,2]
[405853170,1771362642926,-546.0,0.00012933,2]
[405853171,1771362642938,-191.56,0.00012938,2]
[405853172,1771362642948,-500.0,0.00012945,2]
[405853174,1771362642959,-558.2655769,0.00012988,2]
[405853175,1771362642970,-41302.48620872,0.00013126,2]
[405853178,1771362642981,-200.0,0.00013161,2]
[405853180,1771362642995,-500.0,0.00013161,2]
[405853182,1771362643006,-200.0,0.00013161,2]
[405853183,1771362643016,-500.0,0.00013219,2]
[405853184,1771362643027,-1500.0,0.00013268,2]
[405853185,1771362643038,-1500.0,0.00013268,2]
[405853186,1771362643048,-1500.0,0.00013268,2]
[405853187,1771362643059,-1513.76878479,0.00013268,2]
[405853188,1771362643071,-932.93855102,0.00013268,2]
[405853189,1771362643082,-344.71223806,0.00013268,2]
[405853190,1771362643092,-1000.0,0.00013268,2]
[405853191,1771362643103,-1500.0,0.00013268,2]
[405853192,1771362643113,-1500.0,0.00013268,2]
[405853193,1771362643123,-1500.0,0.00013268,2]
[405853194,1771362643134,-1500.0,0.00013268,2]
[405853195,1771362643147,-627.37822097,0.00013298,2]
[405853196,1771362643157,-259.7041,0.00013398,2]
[405853197,1771362643167,-2351.0,0.00013467,2]
[405853198,1771362643177,-596.47581986,0.00013487,2]
[405853199,1771362643188,-500.0,0.00013493,2]
[405853200,1771362643199,-113203.80984695,0.00013498,2]
[405853203,1771362643215,-1000.0,0.00013508,2]
[405853205,1771362643226,-41302.48620872,0.00013565,2]
[405853207,1771362643237,-940.82,0.00013698,2]
[405853208,1771362643247,-940.82,0.00013698,2]
[405853209,1771362643258,-940.82,0.00013698,2]
[405853210,1771362643268,-940.82,0.00013698,2]
[405853211,1771362643279,-940.82,0.00013698,2]
[405853212,1771362643289,-940.82,0.00013698,2]
[405853213,1771362643300,-940.82,0.00013698,2]
[405853214,1771362643311,-940.82,0.00013698,2]
[405853215,1771362643321,-940.82,0.00013698,2]
[405853216,1771362643331,-940.82,0.00013698,2]
[405853217,1771362643343,-940.82,0.00013698,2]
[405853218,1771362643354,-940.82,0.00013698,2]
[405853219,1771362643364,-940.82,0.00013698,2]
[405853220,1771362643374,-940.82,0.00013698,2]
[405853221,1771362643385,-940.82,0.00013698,2]
[405853222,1771362643397,-940.82,0.00013698,2]
[405853223,1771362643407,-940.82,0.00013698,2]
[405853224,1771362643418,-940.82,0.00013698,2]
[405853225,1771362643428,-940.82,0.00013698,2]
[405853226,1771362643440,-940.82,0.00013698,2]
[405853227,1771362643451,-940.82,0.00013698,2]
[405853228,1771362643463,-940.82,0.00013698,2]
[405853229,1771362643474,-940.82,0.00013698,2]
[405853230,1771362643484,-940.91678348,0.00013698,2]
[405853231,1771362643495,-500.0,0.00013698,2]
[405853232,1771362643505,-500.0,0.00013698,2]
[405853233,1771362643516,-500.0,0.00013698,2]
[405853234,1771362643526,-500.0,0.00013698,2]
[405853235,1771362643536,-500.0,0.00013698,2]
[405853236,1771362643547,-500.0,0.00013698,2]
[405853237,1771362643558,-500.0,0.00013698,2]
[405853238,1771362643567,-500.0,0.00013698,2]
[405853239,1771362643582,-500.0,0.00013698,2]
[405853240,1771362643593,-500.0,0.00013698,2]
[405853241,1771362643603,-500.0,0.00013698,2]
[405853242,1771362643613,-500.0,0.00013698,2]
[405853243,1771362643623,-200.92210999,0.00013698,2]
[405853244,1771362643634,-500.0,0.00013698,2]
[405853245,1771362643645,-500.0,0.00013698,2]
[405853246,1771362643655,-500.0,0.00013698,2]
[405853247,1771362643665,-191.17661539,0.00013698,2]
[405853248,1771362643676,-500.0,0.00013698,2]
[405853249,1771362643686,-500.0,0.00013698,2]
[405853250,1771362643697,-500.0,0.00013698,2]
[405853251,1771362643707,-500.0,0.00013698,2]
[405853252,1771362643719,-545.12,0.000137,2]
[405853253,1771362643729,-545.12,0.000137,2]
[405853254,1771362643740,-545.12,0.000137,2]
[405853255,1771362643751,-545.12,0.000137,2]
[405853256,1771362643764,-545.12,0.000137,2]
[405853257,1771362643774,-218.04759767,0.00013709,2]
[405853258,1771362643785,-500.0,0.00013709,2]
[405853259,1771362643795,-200.0,0.00013709,2]
[405853260,1771362643806,-500.0,0.00013767,2]
[405853261,1771362643816,-2000.0,0.00013816,2]
[405853262,1771362643827,-2000.0,0.00013816,2]
[405853263,1771362643837,-2000.0,0.00013816,2]
[405853265,1771362643847,-2000.0,0.00013816,2]
[405853267,1771362643857,-2000.0,0.00013816,2]
[405853269,1771362643868,-2000.0,0.00013816,2]
[405853271,1771362643878,-226.6191256,0.00013816,2]
[405853273,1771362643888,-157.72795359,0.00013873,2]
[405853274,1771362643899,-290.99134182,0.00013873,2]
[405853276,1771362643909,-500.0,0.00013873,2]
[405853278,1771362643919,-500.0,0.00013873,2]
[405853279,1771362643929,-163.87964352,0.00013873,2]
[405853280,1771362643940,-500.0,0.00013873,2]
[405853281,1771362643953,-500.0,0.00013873,2]
[405853282,1771362643964,-500.0,0.00013873,2]
[405853283,1771362643975,-501.23450591,0.00013873,2]
[405853284,1771362643985,-161.95965132,0.00013873,2]
[405853285,1771362644000,-500.0,0.00013873,2]
[405853286,1771362644011,-500.0,0.00013873,2]